bitfinex/quotes_BTCUSD_20241027
["timestamp","ask_amount","ask_price","bid_price","bid_amount"]
[1730026101382,0.0351413,67052.0,67051.0,0.149139]
[1730026101472,0.03793358,67052.0,67051.0,0.149139]
[1730026101707,0.04910022,67052.0,67051.0,0.149139]
[1730026103088,0.001642,67052.0,67051.0,0.149139]
[1730026103308,0.04910092,67052.0,67051.0,0.149139]
[1730026105295,0.04910338,67052.0,67051.0,0.149139]
[1730026105748,0.04910593,67052.0,67051.0,0.149139]
[1730026107713,0.06306779,67052.0,67051.0,0.149139]
[1730026108586,0.08988547,67052.0,67051.0,0.149139]
[1730026109055,0.08989471,67052.0,67051.0,0.149139]
[1730026112312,0.06307703,67052.0,67051.0,0.149139]
[1730026113027,0.06308255,67052.0,67051.0,0.149139]
[1730026116580,0.0630947,67052.0,67051.0,0.149139]
[1730026116816,0.06309937,67052.0,67051.0,0.149139]
[1730026117050,0.04913163,67052.0,67051.0,0.149139]
[1730026117271,0.06309937,67052.0,67051.0,0.149139]
[1730026118439,0.08991413,67052.0,67051.0,0.149139]
[1730026119096,0.06309937,67052.0,67051.0,0.149139]
[1730026120737,0.06310038,67052.0,67051.0,0.149139]
[1730026129061,0.06310243,67052.0,67051.0,0.149139]
[1730026129265,0.06310244,67052.0,67051.0,0.149139]
[1730026132372,0.06310306,67052.0,67051.0,0.149139]
[1730026136384,0.06310438,67052.0,67051.0,0.149139]
[1730026136621,0.0899202,67052.0,67051.0,0.149139]
[1730026137259,0.06310438,67052.0,67051.0,0.149139]
[1730026140172,0.06310961,67052.0,67051.0,0.149139]
[1730026140661,0.06311182,67052.0,67051.0,0.149139]
[1730026142844,0.05193634,67052.0,67051.0,0.149139]
[1730026143061,0.06311286,67052.0,67051.0,0.149139]
[1730026144250,0.08992866,67052.0,67051.0,0.149139]
[1730026144867,0.06311286,67052.0,67051.0,0.149139]
[1730026145988,0.08992864,67052.0,67051.0,0.149139]
[1730026146615,0.0396343,67052.0,67051.0,0.149139]
[1730026146845,0.08992684,67052.0,67051.0,0.149139]
[1730026148593,0.06311106,67052.0,67051.0,0.149139]
[1730026148814,0.08992808,67052.0,67051.0,0.149139]
[1730026149019,0.08992806,67052.0,67051.0,0.149139]
[1730026149748,0.06311104,67052.0,67051.0,0.149139]
[1730026150177,0.06311104,67052.0,67051.0,0.242139]
[1730026150391,0.0491408,67052.0,67051.0,0.242139]
[1730026150609,0.06311126,67052.0,67051.0,0.242139]
[1730026154201,0.05193432,67052.0,67051.0,0.242139]
[1730026154445,0.06311007,67052.0,67051.0,0.242139]
[1730026154680,0.06310819,67052.0,67051.0,0.242139]
[1730026157958,0.001642,67052.0,67051.0,0.242139]
[1730026158192,0.0519317,67052.0,67051.0,0.242139]
[1730026158417,0.06310719,67052.0,67051.0,0.242139]
[1730026160171,0.06310719,67052.0,67051.0,0.149139]
[1730026161239,0.09055748,67052.0,67051.0,0.149139]
[1730026161689,0.04306165,67052.0,67051.0,0.149139]
[1730026161906,0.09055621,67052.0,67051.0,0.149139]
[1730026163229,0.07938095,67052.0,67051.0,0.149139]
[1730026163709,0.03796159,67052.0,67051.0,0.149139]
[1730026163912,0.01561107,67052.0,67051.0,0.149139]
[1730026164987,0.001642,67052.0,67051.0,0.149139]
[1730026165972,0.04913662,67052.0,67051.0,0.149139]
[1730026166123,0.05193041,67052.0,67051.0,0.149139]
[1730026166786,0.04913656,67052.0,67051.0,0.149139]
[1730026167653,0.03796141,67052.0,67051.0,0.149139]
[1730026167896,0.001642,67052.0,67051.0,0.149139]
[1730026168118,0.01561104,67052.0,67051.0,0.149139]
[1730026168561,0.06310568,67052.0,67051.0,0.149139]
[1730026170000,0.06310568,67052.0,67051.0,0.241439]
[1730026170217,0.06310568,67052.0,67051.0,0.32102157]
[1730026170494,0.06310568,67052.0,67051.0,0.46854281]
[1730026170704,0.05193047,67052.0,67051.0,0.46854281]
[1730026170911,0.03796143,67052.0,67051.0,0.46854281]
[1730026173541,0.01561101,67052.0,67051.0,0.46854281]
[1730026177301,0.001642,67052.0,67051.0,0.46854281]
[1730026177504,0.01560019,67052.0,67051.0,0.46854281]
[1730026183334,0.0998,67051.0,67046.0,0.299121]
[1730026183545,0.0998,67051.0,67048.0,0.149146]
[1730026183546,0.06140217,67050.0,67048.0,0.149146]
[1730026183760,0.06140217,67049.0,67047.0,0.298298]
[1730026183969,0.0268214,67049.0,67048.0,0.149146]
[1730026184195,0.08821605,67049.0,67048.0,0.149146]
[1730026184415,0.06139465,67049.0,67048.0,0.149146]
[1730026184643,0.05472612,67049.0,67048.0,0.149146]
[1730026184855,0.08821176,67049.0,67048.0,0.149146]
[1730026188242,0.07425941,67049.0,67048.0,0.149146]
[1730026188463,0.07704005,67049.0,67048.0,0.149146]
[1730026188683,0.08819974,67049.0,67048.0,0.149146]
[1730026190268,0.07704005,67049.0,67048.0,0.149146]
[1730026191580,0.03626901,67049.0,67048.0,0.149146]
[1730026192316,0.03626901,67049.0,67048.0,0.29964981]
[1730026192776,0.01394962,67049.0,67048.0,0.2941834]
[1730026193450,0.01394962,67049.0,67048.0,0.3915834]
[1730026194512,0.01394962,67049.0,67048.0,0.4671834]
[1730026194699,0.001642,67052.0,67051.0,0.24734]
[1730026194904,0.01558847,67052.0,67051.0,0.39784381]
[1730026198047,0.01558847,67052.0,67051.0,0.40927546]
[1730026199434,0.01558679,67052.0,67051.0,0.40927546]
[1730026201811,0.01558571,67052.0,67051.0,0.40927546]
[1730026205290,0.001642,67052.0,67051.0,0.58567546]
[1730026205500,0.001642,67052.0,67051.0,0.59067546]
[1730026213002,0.001642,67052.0,67051.0,0.60067546]
[1730026214056,0.22240179,67068.0,67058.0,0.149124]
[1730026214265,0.22240179,67068.0,67058.0,0.39710991]
[1730026214479,0.02849199,67059.0,67058.0,0.39412781]
[1730026214680,0.001642,67059.0,67058.0,0.39412781]
[1730026214895,0.001642,67059.0,67058.0,0.49912781]
[1730026215170,0.22240179,67068.0,67067.0,0.24252863]
[1730026215378,0.23633512,67068.0,67067.0,0.39303244]
[1730026215585,0.04080043,67068.0,67067.0,0.39303244]
[1730026216003,0.01393333,67068.0,67067.0,0.39303244]
[1730026216625,0.001642,67075.0,67074.0,0.149089]
[1730026216826,0.05179889,67075.0,67074.0,0.149089]
[1730026217036,0.08982677,67075.0,67074.0,0.149089]
[1730026218319,0.06294486,67075.0,67074.0,0.149089]
[1730026220268,0.05179622,67075.0,67074.0,0.149089]
[1730026220482,0.0629416,67075.0,67074.0,0.149089]
[1730026223871,0.001642,67075.0,67074.0,0.149089]
[1730026224075,0.06295953,67075.0,67074.0,0.149089]
[1730026224291,0.03787511,67075.0,67074.0,0.149089]
[1730026224505,0.07689618,67075.0,67074.0,0.149089]
[1730026224735,0.06296037,67075.0,67074.0,0.149089]
[1730026227647,0.01279064,67075.0,67074.0,0.149089]
[1730026227884,0.06295586,67075.0,67074.0,0.149089]
[1730026228321,0.04902089,67075.0,67074.0,0.149089]
[1730026228537,0.01557706,67075.0,67074.0,0.149089]
[1730026228768,0.001642,67075.0,67074.0,0.149089]
[1730026229415,0.03787316,67075.0,67074.0,0.149089]
[1730026230934,0.0239381,67075.0,67074.0,0.149089]
[1730026231156,0.1990381,67075.0,67074.0,0.149089]
[1730026231373,0.1990381,67075.0,67069.0,0.298198]
[1730026231374,0.1990381,67075.0,67069.0,0.2982]
[1730026231613,0.20365179,67075.0,67071.0,0.149093]
[1730026231858,0.149091,67073.0,67068.0,0.1491]
[1730026232088,0.149091,67073.0,67067.0,0.000821]
[1730026232089,0.149091,67073.0,67069.0,0.149099]
[1730026232309,0.02690977,67072.0,67069.0,0.149099]
[1730026232498,0.01962195,67072.0,67069.0,0.149099]
[1730026232724,0.01962195,67072.0,67071.0,0.149095]
[1730026233001,0.36206266,67075.0,67071.0,0.149095]
[1730026233151,0.01963387,67072.0,67071.0,0.149095]
[1730026233387,0.06132277,67072.0,67071.0,0.149095]
[1730026233591,0.08095664,67072.0,67071.0,0.149095]
[1730026239062,0.04471942,67072.0,67071.0,0.149095]
[1730026239272,0.08100212,67072.0,67071.0,0.149095]
[1730026243148,0.08104099,67072.0,67071.0,0.149095]
[1730026243566,0.10337347,67072.0,67071.0,0.149095]
[1730026247519,0.08104099,67072.0,67071.0,0.149095]
[1730026249433,0.10337296,67072.0,67071.0,0.149095]
[1730026250452,0.0922113,67072.0,67071.0,0.149095]
[1730026250673,0.06708925,67072.0,67071.0,0.149095]
[1730026250884,0.11454515,67072.0,67071.0,0.149095]
[1730026253619,0.10337921,67072.0,67071.0,0.149095]
[1730026254169,0.10338153,67072.0,67071.0,0.149095]
[1730026258086,0.10341489,67072.0,67071.0,0.149095]
[1730026261041,0.06710978,67072.0,67071.0,0.149095]
[1730026261249,0.09506312,67072.0,67071.0,0.149095]
[1730026261455,0.12858723,67072.0,67071.0,0.149095]
[1730026263526,0.10344415,67072.0,67071.0,0.149095]
[1730026264251,0.03080857,67072.0,67071.0,0.149095]
[1730026264443,0.08947546,67072.0,67071.0,0.149095]
[1730026264657,0.10344377,67072.0,67071.0,0.149095]
[1730026265340,0.12579403,67072.0,67071.0,0.149095]
[1730026265546,0.10344377,67072.0,67071.0,0.149095]
[1730026265752,0.10344377,67072.0,67071.0,0.321495]
[1730026266197,0.10344377,67072.0,67071.0,0.47199881]
[1730026266400,0.09226912,67072.0,67071.0,0.47199881]
[1730026266618,0.07263525,67072.0,67071.0,0.47199881]
[1730026266823,0.05866694,67072.0,67071.0,0.47199881]
[1730026267347,0.05866694,67072.0,67071.0,0.48367554]
[1730026267551,0.03631763,67072.0,67071.0,0.48367554]
[1730026267754,0.03631763,67072.0,67071.0,0.48078321]
[1730026268161,0.03795963,67072.0,67071.0,0.48078321]
[1730026268371,0.03723383,67072.0,67071.0,0.48078321]
[1730026268617,0.03541933,67072.0,67071.0,0.48078321]
[1730026269067,0.03505527,67072.0,67071.0,0.48078321]
[1730026272442,0.02108695,67072.0,67071.0,0.48078321]
[1730026272657,0.03503593,67072.0,67071.0,0.48078321]
[1730026273549,0.01559098,67072.0,67071.0,0.48078321]
[1730026276802,0.01559098,67072.0,67071.0,0.46910648]
[1730026277518,0.03790353,67072.0,67071.0,0.46910648]
[1730026277752,0.03790353,67072.0,67071.0,0.39020648]
[1730026279175,0.03790353,67072.0,67071.0,0.29670648]
[1730026279524,0.001642,67072.0,67071.0,0.29670648]
[1730026279738,0.03790056,67072.0,67071.0,0.29670648]
[1730026283632,0.001642,67072.0,67071.0,0.29670648]
[1730026283811,0.03790571,67072.0,67071.0,0.29670648]
[1730026286341,0.05185506,67072.0,67071.0,0.29670648]
[1730026290843,0.03790571,67072.0,67071.0,0.29670648]
[1730026291053,0.05185877,67072.0,67071.0,0.29670648]
[1730026292156,0.05185877,67072.0,67071.0,0.29752748]
[1730026292391,0.06302339,67072.0,67071.0,0.29752748]
[1730026293407,0.06302357,67072.0,67071.0,0.29752748]
[1730026294042,0.06302357,67072.0,67071.0,0.29252748]
[1730026294675,0.06306385,67072.0,67071.0,0.29252748]
[1730026295084,0.04910434,67072.0,67071.0,0.29252748]
[1730026295257,0.06306385,67072.0,67071.0,0.29252748]
[1730026298501,0.02677156,67072.0,67071.0,0.29252748]
[1730026298697,0.07423851,67072.0,67071.0,0.29252748]
[1730026302525,0.06307714,67072.0,67071.0,0.29252748]
[1730026302926,0.07424746,67072.0,67071.0,0.29252748]
[1730026303455,0.03515274,67072.0,67071.0,0.29252748]
[1730026303684,0.07425127,67072.0,67071.0,0.29252748]
[1730026303882,0.06308258,67072.0,67071.0,0.29252748]
[1730026305091,0.08232738,67072.0,67071.0,0.29252748]
[1730026306568,0.08235307,67072.0,67071.0,0.29252748]
[1730026306819,0.06838346,67072.0,67071.0,0.29252748]
[1730026307021,0.08235307,67072.0,67071.0,0.29252748]
[1730026307443,0.08235332,67072.0,67071.0,0.29252748]
[1730026308484,0.08235332,67072.0,67071.0,0.14202367]
[1730026309127,0.12028284,67077.0,67071.0,0.14202367]
[1730026309321,0.22240179,67079.0,67076.0,0.154083]
[1730026309497,0.22240179,67079.0,67077.0,0.154082]
[1730026309707,0.19373063,67085.0,67077.0,0.154082]
[1730026309912,0.149064,67085.0,67077.0,0.154082]
[1730026310314,0.149064,67085.0,67077.0,0.005]
[1730026310747,0.149064,67085.0,67077.0,0.154082]
[1730026312384,0.1764,67084.0,67077.0,0.154082]
[1730026312876,0.02501618,67083.0,67077.0,0.154082]
[1730026313368,0.02501618,67083.0,67078.0,0.14908]
[1730026313525,0.02501618,67083.0,67077.0,0.154081]
[1730026315148,0.02501618,67083.0,67078.0,0.149079]
[1730026316271,0.02665818,67083.0,67078.0,0.149079]
[1730026317686,0.02665818,67083.0,67078.0,0.14908]
[1730026318724,0.02665818,67083.0,67079.0,0.149076]
[1730026319061,0.02234979,67082.0,67079.0,0.149076]
[1730026319282,0.0670338,67081.0,67079.0,0.149076]
[1730026319486,0.02234979,67080.0,67079.0,0.149076]
[1730026319680,0.0473641,67080.0,67079.0,0.149076]
[1730026320278,0.0473641,67080.0,67077.0,0.154081]
[1730026320500,0.02234979,67079.0,67077.0,0.154081]
[1730026320718,0.02501423,67079.0,67078.0,0.14908]
[1730026320940,0.04736394,67079.0,67078.0,0.14908]
[1730026321163,0.04468401,67081.0,67078.0,0.14908]
[1730026321395,0.03898279,67079.0,67078.0,0.14908]
[1730026321630,0.04468401,67081.0,67079.0,0.149077]
[1730026322070,0.06146158,67080.0,67079.0,0.149077]
[1730026322332,0.10614559,67080.0,67079.0,0.149077]
[1730026323027,0.13115986,67080.0,67079.0,0.149077]
[1730026324424,0.09484165,67080.0,67079.0,0.149077]
[1730026324648,0.13116001,67080.0,67079.0,0.149077]
[1730026327646,0.13116001,67080.0,67079.0,0.149898]
[1730026328276,0.11998532,67080.0,67079.0,0.149898]
[1730026328485,0.14512895,67080.0,67079.0,0.149898]
[1730026330861,0.14514508,67080.0,67079.0,0.149898]
[1730026331219,0.14514508,67080.0,67079.0,0.000821]
[1730026331648,0.14514508,67080.0,67079.0,0.149898]
[1730026331847,0.09485804,67080.0,67079.0,0.149898]
[1730026332044,0.11162085,67080.0,67079.0,0.149898]
[1730026332267,0.14514616,67080.0,67079.0,0.149898]
[1730026333914,0.13117748,67080.0,67079.0,0.149898]
[1730026335432,0.08647734,67080.0,67079.0,0.149898]
[1730026335644,0.13117111,67080.0,67079.0,0.149898]
[1730026335865,0.08647277,67080.0,67079.0,0.149898]
[1730026336076,0.13116657,67080.0,67079.0,0.149898]
[1730026339528,0.08367548,67080.0,67079.0,0.149898]
[1730026339734,0.13116468,67080.0,67079.0,0.149898]
[1730026343460,0.080882,67080.0,67079.0,0.149898]
[1730026343686,0.13116488,67080.0,67079.0,0.149898]
[1730026345153,0.13116527,67080.0,67079.0,0.149898]
[1730026346067,0.08647108,67080.0,67079.0,0.324198]
[1730026346759,0.06145681,67080.0,67079.0,0.324198]
[1730026347026,0.01117397,67080.0,67079.0,0.324198]
[1730026347263,0.0446954,67082.0,67081.0,0.149073]
[1730026347502,0.10614595,67082.0,67081.0,0.149073]
[1730026349699,0.10614513,67082.0,67081.0,0.149073]
[1730026350176,0.13116277,67082.0,67081.0,0.149073]
[1730026350835,0.08367792,67082.0,67081.0,0.149073]
[1730026351053,0.08088494,67082.0,67081.0,0.149073]
[1730026351275,0.11998686,67082.0,67081.0,0.149073]
[1730026351492,0.08646342,67082.0,67081.0,0.149073]
[1730026352385,0.07249847,67082.0,67081.0,0.149073]
[1730026352697,0.08646316,67082.0,67081.0,0.149073]
[1730026353499,0.13115081,67082.0,67081.0,0.149073]
[1730026353729,0.08646302,67082.0,67081.0,0.149073]
[1730026354207,0.0361896,67082.0,67081.0,0.149073]
[1730026354434,0.02501764,67082.0,67081.0,0.149073]
[1730026354687,0.06144383,67082.0,67081.0,0.149073]
[1730026354941,0.08646278,67082.0,67081.0,0.149073]
[1730026358599,0.08646264,67082.0,67081.0,0.149073]
[1730026360885,0.08646264,67082.0,67080.0,0.149074]
[1730026361103,0.10613005,67081.0,67080.0,0.149074]
[1730026361634,0.13114893,67081.0,67080.0,0.149074]
[1730026362422,0.13114888,67081.0,67080.0,0.149074]
[1730026362642,0.08087681,67081.0,67080.0,0.149074]
[1730026362887,0.1311489,67081.0,67080.0,0.149074]
[1730026363092,0.13114893,67081.0,67080.0,0.149074]
[1730026363530,0.08646257,67081.0,67080.0,0.149074]
[1730026363738,0.11718446,67081.0,67080.0,0.149074]
[1730026363954,0.13114884,67081.0,67080.0,0.149074]
[1730026364853,0.11718446,67081.0,67080.0,0.149074]
[1730026365067,0.15349121,67081.0,67080.0,0.149074]
[1730026366070,0.08087684,67081.0,67080.0,0.149074]
[1730026366295,0.15349058,67081.0,67080.0,0.149074]
[1730026366501,0.15349083,67081.0,67080.0,0.149074]
[1730026367362,0.10880447,67081.0,67080.0,0.149074]
[1730026367996,0.10880437,67081.0,67080.0,0.149074]
[1730026371279,0.15349441,67081.0,67080.0,0.149074]
[1730026373749,0.11719023,67081.0,67080.0,0.149074]
[1730026373974,0.15350147,67081.0,67080.0,0.149074]
[1730026375135,0.15350147,67081.0,67080.0,0.149895]
[1730026378386,0.15350235,67081.0,67080.0,0.149895]
[1730026380727,0.13115697,67081.0,67080.0,0.149895]
[1730026380939,0.15350451,67081.0,67080.0,0.149895]
[1730026383495,0.15350727,67081.0,67080.0,0.149895]
[1730026387214,0.14233599,67081.0,67080.0,0.149895]
[1730026387432,0.15350903,67081.0,67080.0,0.149895]
[1730026388649,0.15350903,67081.0,67080.0,0.000821]
[1730026388883,0.17585406,67081.0,67080.0,0.000821]
[1730026389121,0.42285253,67081.0,67080.0,0.000821]
[1730026389343,0.25788571,67081.0,67080.0,0.000821]
[1730026389795,0.10881271,67081.0,67080.0,0.000821]
[1730026390501,0.25109453,67081.0,67080.0,0.000821]
[1730026390917,0.10200894,67081.0,67080.0,0.000821]
[1730026391176,0.16902018,67081.0,67080.0,0.000821]
[1730026391368,0.16902019,67081.0,67080.0,0.000821]
[1730026394719,0.13269295,67081.0,67080.0,0.000821]
[1730026394932,0.14665001,67081.0,67080.0,0.000821]
[1730026395155,0.16898131,67081.0,67080.0,0.000821]
[1730026396949,0.16896641,67081.0,67080.0,0.000821]
[1730026397542,0.10197007,67081.0,67080.0,0.000821]
[1730026397748,0.16896629,67081.0,67080.0,0.000821]
[1730026398568,0.15779591,67081.0,67080.0,0.000821]
[1730026398773,0.10196388,67081.0,67080.0,0.000821]
[1730026399796,0.16895971,67081.0,67080.0,0.000821]
[1730026400211,0.16895971,67081.0,67080.0,0.149896]
[1730026401251,0.10196388,67081.0,67080.0,0.149896]
[1730026402089,0.06568025,67081.0,67080.0,0.149896]
[1730026402295,0.10196193,67081.0,67080.0,0.149896]
[1730026405433,0.10196193,67081.0,67080.0,0.14740592]
[1730026405860,0.10195585,67081.0,67080.0,0.147358]
[1730026406058,0.07962834,67081.0,67080.0,0.147358]
[1730026406295,0.0768374,67081.0,67080.0,0.147358]
[1730026406528,0.10195585,67081.0,67080.0,0.147358]
[1730026406741,0.06567427,67081.0,67080.0,0.147358]
[1730026406955,0.10195694,67081.0,67080.0,0.147358]
[1730026407388,0.06567427,67081.0,67080.0,0.147358]
[1730026407603,0.10195759,67081.0,67080.0,0.147358]
[1730026409786,0.09079369,67081.0,67080.0,0.147358]
[1730026409995,0.10195836,67081.0,67080.0,0.147358]
[1730026411688,0.10195836,67081.0,67080.0,0.148179]
[1730026413193,0.10195836,67081.0,67080.0,0.247379]
[1730026413403,0.0908018,67081.0,67080.0,0.324379]
[1730026413689,0.10196839,67081.0,67080.0,0.324379]
[1730026414116,0.06568572,67081.0,67080.0,0.324379]
[1730026414330,0.10197709,67081.0,67080.0,0.324379]
[1730026414542,0.03629137,67081.0,67080.0,0.324379]
[1730026414753,0.05451649,67081.0,67080.0,0.324379]
[1730026414960,0.03629137,67081.0,67080.0,0.324379]
[1730026415446,0.05862506,67081.0,67080.0,0.324379]
[1730026415668,0.0545174,67081.0,67080.0,0.324379]
[1730026417311,0.054525,67081.0,67080.0,0.324379]
[1730026417521,0.01822515,67081.0,67080.0,0.324379]
[1730026419149,0.04630028,67083.0,67080.0,0.077821]
[1730026419353,0.04630028,67083.0,67082.0,0.149071]
[1730026419977,0.06026469,67083.0,67082.0,0.149071]
[1730026420182,0.06026469,67083.0,67082.0,0.248271]
[1730026421848,0.08260776,67083.0,67082.0,0.248271]
[1730026422487,0.06864335,67083.0,67082.0,0.248271]
[1730026422905,0.04630028,67083.0,67082.0,0.248271]
[1730026423105,0.04630469,67083.0,67082.0,0.248271]
[1730026424546,0.06453431,67083.0,67082.0,0.248271]
[1730026427050,0.07849257,67083.0,67082.0,0.248271]
[1730026427871,0.06453431,67083.0,67082.0,0.248271]
[1730026429114,0.07849128,67083.0,67082.0,0.248271]
[1730026429330,0.1147794,67083.0,67082.0,0.248271]
[1730026429740,0.11198769,67083.0,67082.0,0.248271]
[1730026429947,0.12594427,67083.0,67082.0,0.248271]
[1730026430382,0.12594287,67083.0,67082.0,0.248271]
[1730026432506,0.12594128,67083.0,67082.0,0.248271]
[1730026437288,0.12594044,67083.0,67082.0,0.248271]
[1730026438343,0.149073,67081.0,67080.0,0.000821]
[1730026438543,0.21048638,67081.0,67080.0,0.000821]
[1730026438754,0.27337901,67081.0,67080.0,0.000821]
[1730026438968,0.22871931,67081.0,67080.0,0.000821]
[1730026439845,0.22871959,67081.0,67080.0,0.000821]
[1730026444161,0.22872134,67081.0,67080.0,0.000821]
[1730026447471,0.07964834,67081.0,67080.0,0.000821]
[1730026447958,0.01823293,67081.0,67080.0,0.000821]
[1730026448177,0.06568557,67081.0,67080.0,0.000821]
[1730026448395,0.09080674,67081.0,67080.0,0.000821]
[1730026450040,0.09080641,67081.0,67080.0,0.000821]
[1730026451864,0.04056333,67081.0,67080.0,0.000821]
[1730026452072,0.0908049,67081.0,67080.0,0.000821]
[1730026452941,0.2398779,67081.0,67080.0,0.000821]
[1730026453367,0.26220725,67081.0,67080.0,0.000821]
[1730026453596,0.25104205,67081.0,67080.0,0.000821]
[1730026454735,0.10196905,67081.0,67080.0,0.000821]
[1730026455664,0.10196922,67081.0,67080.0,0.000821]
[1730026456571,0.25104222,67081.0,67080.0,0.000821]
[1730026457907,0.10196922,67081.0,67080.0,0.000821]
[1730026458667,0.10361122,67081.0,67080.0,0.000821]
[1730026459590,0.01987493,67081.0,67080.0,0.000821]
[1730026459826,0.25268538,67081.0,67080.0,0.000821]
[1730026461089,0.10361238,67081.0,67080.0,0.000821]
[1730026461305,0.25268538,67081.0,67080.0,0.000821]
[1730026462348,0.10361238,67081.0,67080.0,0.000821]
[1730026463220,0.10361757,67081.0,67080.0,0.000821]
[1730026466776,0.03104114,67081.0,67080.0,0.000821]
[1730026466995,0.10364801,67081.0,67080.0,0.000821]
[1730026468315,0.74166274,67081.0,67080.0,0.000821]
[1730026468540,0.74166354,67081.0,67080.0,0.000821]
[1730026468771,0.85530035,67081.0,67080.0,0.000821]
[1730026469242,0.74166354,67081.0,67080.0,0.000821]
[1730026469743,0.85326529,67081.0,67080.0,0.000821]
[1730026470835,0.84207121,67081.0,67080.0,0.000821]
[1730026471057,0.85323346,67081.0,67080.0,0.000821]
[1730026473051,0.8530999,67081.0,67080.0,0.000821]
[1730026473278,0.74153118,67081.0,67080.0,0.000821]
[1730026474161,0.74147368,67081.0,67080.0,0.000821]
[1730026475491,0.85300928,67081.0,67080.0,0.000821]
[1730026477705,0.8529451,67081.0,67080.0,0.000821]
[1730026481462,0.7804236,67081.0,67080.0,0.000821]
[1730026481699,0.852904,67081.0,67080.0,0.000821]
[1730026481908,0.80550156,67081.0,67080.0,0.000821]
[1730026482130,0.6792926,67081.0,67080.0,0.000821]
[1730026482434,0.67924463,67081.0,67080.0,0.000821]
[1730026483439,0.61791505,67081.0,67080.0,0.000821]
[1730026483875,0.59561338,67081.0,67080.0,0.000821]
[1730026484101,0.63185299,67081.0,67080.0,0.000821]
[1730026484791,0.59561338,67081.0,67080.0,0.000821]
[1730026485686,0.63185307,67081.0,67080.0,0.000821]
[1730026486126,0.52034301,67081.0,67080.0,0.000821]
[1730026486571,0.55379521,67081.0,67080.0,0.000821]
[1730026486818,0.5565829,67081.0,67080.0,0.000821]
[1730026487033,0.52033833,67081.0,67080.0,0.000821]
[1730026487678,0.56773044,67081.0,67080.0,0.000821]
[1730026488523,0.67923697,67081.0,67080.0,0.000821]
[1730026489029,0.63184622,67081.0,67080.0,0.000821]
[1730026489243,0.67923907,67081.0,67080.0,0.000821]
[1730026491752,0.67921985,67081.0,67080.0,0.000821]
[1730026492640,0.59558541,67081.0,67080.0,0.000821]
[1730026492886,0.66808751,67081.0,67080.0,0.000821]
[1730026493750,0.42839628,67081.0,67080.0,0.000821]
[1730026493966,0.49528697,67081.0,67080.0,0.096621]
[1730026495540,0.40608493,67081.0,67080.0,0.096621]
[1730026496710,0.35867971,67081.0,67080.0,0.177421]
[1730026496937,0.40612056,67081.0,67080.0,0.177421]
[1730026497797,0.39496639,67081.0,67080.0,0.177421]
[1730026499530,0.48416843,67081.0,67080.0,0.177421]
[1730026500627,0.48426747,67081.0,67080.0,0.177421]
[1730026502661,0.4842889,67081.0,67080.0,0.177421]
[1730026503968,0.23035292,67081.0,67080.0,0.177421]
[1730026504183,0.31960189,67081.0,67080.0,0.177421]
[1730026504396,0.484329,67081.0,67080.0,0.177421]
[1730026506240,0.47036973,67081.0,67080.0,0.177421]
[1730026506445,0.48432796,67081.0,67080.0,0.177421]
[1730026506656,0.47317312,67081.0,67080.0,0.177421]
[1730026506865,0.48433954,67081.0,67080.0,0.177421]
[1730026507521,0.39509057,67081.0,67080.0,0.177421]
[1730026508181,0.48436342,67081.0,67080.0,0.177421]
[1730026508609,0.48437085,67081.0,67080.0,0.177421]
[1730026509052,0.24601757,67081.0,67080.0,0.177421]
[1730026509496,0.23036346,67081.0,67080.0,0.177421]
[1730026509704,0.08129046,67081.0,67080.0,0.177421]
[1730026509912,0.23036346,67081.0,67080.0,0.177421]
[1730026510124,0.2973309,67081.0,67080.0,0.177421]
[1730026510568,0.23036346,67081.0,67080.0,0.177421]
[1730026511429,0.08129046,67081.0,67080.0,0.177421]
[1730026511661,0.23036346,67081.0,67080.0,0.177421]
[1730026512320,0.08129046,67081.0,67080.0,0.177421]
[1730026512533,0.297338,67081.0,67080.0,0.177421]
[1730026513606,0.08129046,67081.0,67080.0,0.177421]
[1730026513803,0.23036346,67081.0,67080.0,0.177421]
[1730026514270,0.17059821,67081.0,67080.0,0.177421]
[1730026514514,0.31967121,67081.0,67080.0,0.177421]
[1730026517726,0.17059821,67081.0,67080.0,0.177421]
[1730026517939,0.15940478,67081.0,67080.0,0.177421]
[1730026518154,0.12032979,67081.0,67080.0,0.177421]
[1730026518355,0.17055781,67081.0,67080.0,0.177421]
[1730026518759,0.2526606,67081.0,67080.0,0.177421]
[1730026518995,0.31963081,67081.0,67080.0,0.177421]
[1730026519202,0.17055781,67081.0,67080.0,0.177421]
[1730026519412,0.1035876,67081.0,67080.0,0.177421]
[1730026520077,0.2526606,67081.0,67080.0,0.177421]
[1730026520286,0.1035876,67081.0,67080.0,0.177421]
[1730026520703,0.2526606,67081.0,67080.0,0.177421]
[1730026521187,0.1035876,67081.0,67080.0,0.177421]
[1730026521616,0.06731211,67081.0,67080.0,0.326496]
[1730026521827,0.14823373,67081.0,67080.0,0.326496]
[1730026523335,0.10359187,67081.0,67080.0,0.326496]
[1730026523766,0.10359187,67081.0,67080.0,0.331496]
[1730026525281,0.06731807,67081.0,67080.0,0.331496]
[1730026525489,0.0853666,67081.0,67080.0,0.331496]
[1730026526136,0.10324209,67081.0,67080.0,0.331496]
[1730026528120,0.0853666,67081.0,67080.0,0.331496]
[1730026528337,0.0853666,67081.0,67080.0,0.326496]
[1730026528561,0.0853666,67081.0,67080.0,0.331496]
[1730026528990,0.10323311,67081.0,67080.0,0.331496]
[1730026529203,0.01951749,67081.0,67080.0,0.331496]
[1730026529422,0.10323302,67081.0,67080.0,0.331496]
[1730026530499,0.08535753,67081.0,67080.0,0.331496]
[1730026530941,0.10323299,67081.0,67080.0,0.331496]
[1730026531150,0.08535753,67081.0,67080.0,0.331496]
[1730026531365,0.103233,67081.0,67080.0,0.331496]
[1730026533811,0.103233,67081.0,67080.0,0.182421]
[1730026535815,0.103233,67081.0,67080.0,0.331496]
[1730026536286,0.05579598,67081.0,67080.0,0.331496]
[1730026536499,0.10323711,67081.0,67080.0,0.331496]
[1730026537320,0.10323711,67081.0,67080.0,0.326496]
[1730026537539,0.10323711,67081.0,67080.0,0.331496]
[1730026540189,0.09207449,67081.0,67080.0,0.331496]
[1730026540395,0.10324058,67081.0,67080.0,0.326496]
[1730026542002,0.10324058,67081.0,67080.0,0.331496]
[1730026543522,0.08929704,67081.0,67080.0,0.331496]
[1730026543759,0.1032564,67081.0,67080.0,0.331496]